bitfinex/quotes_SOLUSD_20241226
["timestamp","ask_amount","ask_price","bid_price","bid_amount"]
[1735224145222,20.0,189.42,189.34,23.776884]
[1735224145724,25.2793,189.42,189.33,7.9204]
[1735224146029,20.0,189.41,189.33,7.9204]
[1735224146624,5.2793,189.42,189.33,7.9204]
[1735224146625,30.0,189.46,189.34,23.776884]
[1735224146830,30.0,189.5,189.36,15.08884532]
[1735224147006,30.0,189.46,189.34,15.08884532]
[1735224147330,30.0,189.49,189.34,38.99121932]
[1735224147529,30.0,189.49,189.36,23.776884]
[1735224147530,5.2776,189.48,189.36,23.776884]
[1735224147826,35.37605237,189.51,189.38,23.776884]
[1735224148018,40.65285237,189.51,189.38,23.776884]
[1735224148218,40.65285237,189.51,189.38,15.08884532]
[1735224148727,40.65285237,189.51,189.38,23.776884]
[1735224149038,40.65285237,189.51,189.37,23.902374]
[1735224149226,20.0,189.48,189.37,23.902374]
[1735224149403,40.65285237,189.51,189.38,8.0855]
[1735224150029,35.2775,189.49,189.38,8.0855]
[1735224151226,5.2781,189.46,189.38,8.0855]
[1735224151605,30.0,189.45,189.38,8.0855]
[1735224151811,30.0,189.41,189.31,8.0855]
[1735224152127,20.0,189.4,189.31,8.0855]
[1735224152312,50.0,189.4,189.31,8.0855]
[1735224152627,30.0,189.38,189.31,8.0855]
[1735224153219,35.2804,189.38,189.31,8.0855]
[1735224153416,30.0,189.34,189.22,8.0855]
[1735224153815,20.0,189.29,189.22,8.0855]
[1735224154073,20.0,189.27,189.17,8.0855]
[1735224154230,50.0,189.25,189.17,8.0855]
[1735224154420,30.0,189.29,189.18,15.08884532]
[1735224154622,30.0,189.33,189.19,15.88144701]
[1735224154822,20.0,189.3,189.2,15.08884532]
[1735224155020,20.0,189.3,189.22,23.776884]
[1735224155224,20.0,189.32,189.22,23.776884]
[1735224156110,20.0,189.3,189.18,15.88132609]
[1735224156311,30.0,189.29,189.17,23.17434532]
[1735224156616,20.0,189.26,189.17,8.0855]
[1735224156949,20.0,189.26,189.18,23.776884]
[1735224157115,30.0,189.29,189.18,23.776884]
[1735224157838,20.0,189.26,189.18,23.776884]
[1735224158044,20.0,189.26,189.17,8.0855]
[1735224158822,20.0,189.24,189.17,8.0855]
[1735224159229,20.0,189.24,189.17,6.474]
[1735224159230,30.0,189.23,189.17,6.474]
[1735224159543,30.0,189.23,189.11,1.6571]
[1735224159741,35.2845,189.23,189.11,1.6571]
[1735224159930,35.2845,189.23,189.12,23.776884]
[1735224160237,35.2845,189.23,189.11,1.6571]
[1735224160438,5.2845,189.23,189.11,1.6571]
[1735224160622,30.0,189.22,189.11,1.6571]
[1735224161430,5.2845,189.23,189.12,23.776884]
[1735224161638,30.0,189.22,189.12,23.776884]
[1735224161843,20.0,189.19,189.11,1.6571]
[1735224162031,30.0,189.18,189.1,6.389]
[1735224162537,30.0,189.18,189.05,1.6571]
[1735224162538,20.0,189.15,189.05,1.6571]
[1735224163961,20.0,189.15,189.06,23.776884]
[1735224164464,20.0,189.15,189.05,1.6571]
[1735224164738,20.0,189.13,189.05,1.6571]
[1735224164947,20.0,189.15,189.06,23.776884]
[1735224167044,20.0,189.17,189.08,23.776884]
[1735224167427,20.0,189.17,189.06,48.1113518]
[1735224167862,20.0,189.18,189.06,48.1113518]
[1735224168260,30.12549,189.21,189.08,23.776884]
[1735224168462,30.0,189.21,189.09,0.12549]
[1735224169450,20.0,189.18,189.08,23.776884]
[1735224169748,20.0,189.18,189.05,25.8660778]
[1735224169923,20.0,189.14,189.05,1.6571]
[1735224170353,20.0,189.14,189.06,23.776884]
[1735224170855,20.0,189.14,189.05,1.6571]
[1735224171147,20.0,189.17,189.06,23.776884]
[1735224171349,20.0,189.17,189.06,47.9858618]
[1735224171550,20.0,189.15,189.06,47.9858618]
[1735224171845,20.0,189.15,189.06,23.776884]
[1735224172330,20.0,189.17,189.06,23.776884]
[1735224172727,5.68061177,189.21,189.08,24.2089778]
[1735224173035,30.0,189.2,189.06,24.2089778]
[1735224173243,30.0,189.2,189.05,39.0899778]
[1735224173542,30.0,189.2,189.06,23.902374]
[1735224173752,30.0,189.18,189.06,23.776884]
[1735224174142,20.0,189.15,189.06,23.776884]
[1735224176238,5.68061177,189.21,189.07,0.12549]
[1735224176600,30.0,189.2,189.08,24.2089778]
[1735224176865,30.0,189.2,189.08,23.776884]
[1735224177530,10.96581177,189.21,189.08,24.2089778]
[1735224177736,10.96581177,189.21,189.09,23.776884]
[1735224178150,5.68061177,189.21,189.09,23.902374]
[1735224178453,30.0,189.26,189.14,47.9858618]
[1735224179055,30.0,189.26,189.14,23.776884]
[1735224180366,35.2832,189.28,189.14,38.90157916]
[1735224180667,35.2832,189.28,189.15,0.12549]
[1735224180869,5.68061177,189.29,189.17,0.12549]
[1735224181170,35.69829186,189.3,189.17,0.12549]
[1735224181171,20.0,189.27,189.17,0.12549]
[1735224181969,20.0,189.27,189.16,23.776884]
[1735224182172,20.0,189.23,189.13,1.6115]
[1735224182471,20.0,189.23,189.14,39.02706916]
[1735224182684,20.0,189.25,189.14,52.24476916]
[1735224182849,20.0,189.25,189.14,37.120074]
[1735224183049,20.0,189.25,189.14,23.776884]
[1735224183251,20.0,189.23,189.14,23.776884]
[1735224183548,5.2834,189.27,189.14,38.90157916]
[1735224183787,30.0,189.26,189.14,23.776884]
[1735224183992,20.0,189.24,189.15,0.12549]
[1735224184281,35.82015468,189.33,189.2,23.776884]
[1735224184578,5.82015468,189.33,189.2,15.12469516]
[1735224184764,5.2816,189.34,189.23,23.776884]
[1735224184964,30.0,189.35,189.23,23.776884]
[1735224185853,30.0,189.35,189.23,38.90157916]
[1735224186049,30.0,189.35,189.23,23.776884]
[1735224186373,5.2815,189.34,189.23,23.776884]
[1735224186751,20.0,189.3,189.22,1.6115]
[1735224188382,20.0,189.28,189.22,1.6115]
[1735224188673,50.0,189.24,189.18,6.596]
[1735224188888,20.0,189.19,189.13,6.6289]
[1735224189181,20.0,189.17,189.13,6.6289]
[1735224189384,5.69829186,189.23,189.13,6.6289]
[1735224189555,20.0,189.2,189.13,6.6289]
[1735224190390,50.0,189.2,189.13,6.6289]
[1735224190572,5.2856,189.19,189.12,1.5808]
[1735224190985,20.0,189.2,189.12,1.5808]
[1735224191155,20.0,189.19,189.12,1.5808]
[1735224192466,55.2857,189.19,189.12,1.5808]
[1735224192686,55.2857,189.19,189.08,6.6289]
[1735224193491,20.0,189.2,189.09,23.776884]
[1735224193696,50.0,189.15,189.08,6.6289]
[1735224193909,20.0,189.12,189.07,1.5808]
[1735224194587,20.0,189.12,189.03,6.6289]
[1735224194790,25.2879,189.12,189.03,6.6289]
[1735224195291,20.0,189.1,189.03,6.6289]
[1735224196094,20.0,189.09,189.03,6.6289]
[1735224197071,20.0,189.07,189.0,1.5808]
[1735224197395,20.0,189.04,189.0,1.5808]
[1735224197706,20.0,189.02,188.95,1.5808]
[1735224197858,20.0,189.04,188.95,1.5808]
[1735224197859,30.0,189.03,188.95,1.5808]
[1735224198568,30.0,189.01,188.93,6.6289]
[1735224199862,20.0,189.0,188.93,6.6289]
[1735224201999,20.0,189.02,188.94,23.776884]
[1735224202583,20.0,189.02,188.93,6.6289]
[1735224203392,20.0,189.03,188.94,23.776884]
[1735224205370,55.2902,189.03,188.93,6.6289]
[1735224205798,25.2902,189.03,188.93,6.6289]
[1735224206103,30.0,189.02,188.93,6.6289]
[1735224206264,20.0,189.02,188.93,6.6289]
[1735224206973,20.0,189.0,188.93,6.6289]
[1735224207300,20.0,188.99,188.93,6.6289]
[1735224207789,20.0,189.0,188.93,6.6289]
[1735224210408,20.0,189.03,188.94,23.776884]
[1735224211888,20.0,189.04,188.94,23.776884]
[1735224212092,20.0,189.02,188.94,23.776884]
[1735224212500,20.0,189.02,188.93,6.6289]
[1735224212693,30.0,189.01,188.93,6.6289]
[1735224213389,20.0,189.0,188.93,6.6289]
[1735224213714,20.0,188.99,188.93,6.6289]
[1735224214723,20.0,188.99,188.89,1.5808]
[1735224214724,30.0,188.98,188.89,1.5808]
[1735224215306,25.2912,188.99,188.89,1.5808]
[1735224215307,30.0,188.95,188.89,1.5808]
[1735224215585,20.0,188.9,188.87,6.252]
[1735224215894,20.0,188.88,188.82,6.252]
[1735224216102,20.0,188.86,188.82,6.252]
[1735224216407,30.0,188.84,188.79,1.5183]
[1735224216616,30.0,188.84,188.77,6.0983]
[1735224216792,20.0,188.84,188.77,6.0983]
[1735224216992,50.0,188.84,188.77,6.0983]
[1735224218805,20.0,188.83,188.77,6.0983]
[1735224219006,20.0,188.84,188.77,6.0983]
[1735224219211,50.0,188.84,188.77,6.0983]
[1735224220932,20.0,188.84,188.77,6.0983]
[1735224221107,5.2942,188.89,188.78,23.776884]
[1735224221108,20.0,188.86,188.78,23.776884]
[1735224221313,11.51844654,188.92,188.78,23.776884]
[1735224221314,20.0,188.88,188.78,23.776884]
[1735224221626,30.0,188.91,188.78,23.776884]
[1735224222337,30.0,188.89,188.78,23.776884]
[1735224222829,5.41929,188.9,188.78,23.776884]
[1735224223025,30.0,188.91,188.78,23.776884]
[1735224223231,20.0,188.88,188.78,23.776884]
[1735224223614,5.69829186,188.92,188.78,23.776884]
[1735224223944,20.0,188.89,188.78,23.776884]
[1735224224314,20.0,188.89,188.78,48.08438098]
[1735224224509,35.82015468,188.96,188.84,24.30749698]
[1735224224710,30.0,188.96,188.85,48.08438098]
[1735224225241,30.0,188.98,188.85,48.08438098]
[1735224225407,30.0,188.98,188.87,23.776884]
[1735224225929,30.0,188.98,188.85,23.902374]
[1735224226432,30.0,188.98,188.87,23.776884]
[1735224227061,30.0,188.98,188.85,23.902374]
[1735224227415,30.0,188.98,188.85,48.20987098]
[1735224227854,11.51844654,189.0,188.83,24.30749698]
[1735224227855,20.0,188.93,188.83,24.30749698]
[1735224228328,20.0,188.93,188.84,23.776884]
[1735224228514,30.0,188.98,188.85,0.12549]
[1735224230040,35.2904,189.02,188.88,23.776884]
[1735224230240,30.0,189.04,188.89,0.12549]
[1735224230738,30.0,189.02,188.89,0.12549]
[1735224232418,30.0,189.02,188.88,23.902374]
[1735224232911,30.0,189.02,188.87,31.6244139]
[1735224232912,50.0,188.99,188.87,6.5231]
[1735224233522,50.0,188.99,188.88,23.776884]
[1735224233728,20.0,188.99,188.88,23.776884]
[1735224234044,20.0,188.98,188.88,23.776884]
[1735224235430,30.0,189.01,188.89,23.902374]
[1735224236143,5.69829186,189.06,188.92,23.776884]
[1735224236343,30.0,189.05,188.93,1.5313]
[1735224236848,5.69829186,189.06,188.94,23.776884]
[1735224237031,30.0,189.07,188.96,23.776884]
[1735224240749,30.0,189.05,188.95,6.6371]
[1735224240961,35.2896,189.05,188.95,6.6371]
[1735224241252,30.0,189.03,188.95,6.6371]
[1735224241844,20.0,189.02,188.95,6.6371]
[1735224242040,30.0,189.03,188.95,6.6371]
[1735224242639,41.51844654,189.11,188.96,48.08438098]
[1735224242956,30.0,189.11,188.98,23.776884]
[1735224243861,5.41369,189.1,188.97,26.63232724]
[1735224244066,30.0,189.08,188.97,1.5313]
[1735224244241,35.41369,189.1,188.97,1.5313]
[1735224244441,20.0,189.07,188.97,1.5313]
[1735224244639,35.41369,189.1,188.97,1.5313]
[1735224244640,30.0,189.12,188.98,23.776884]
[1735224245136,0.12549,189.11,188.98,23.776884]
[1735224245342,30.0,189.1,188.98,23.776884]
[1735224245765,30.0,189.12,188.99,0.12549]
[1735224246243,30.0,189.12,189.0,23.776884]
[1735224246765,30.0,189.12,188.98,23.902374]
[1735224247266,20.0,189.09,188.98,23.776884]
[1735224249242,20.0,189.09,188.98,48.08438098]
[1735224249567,30.0,189.12,189.0,23.776884]
[1735224250966,35.2868,189.15,189.02,23.776884]
[1735224251147,20.0,189.12,189.03,1.5166]
[1735224252469,35.2868,189.15,189.03,1.5166]
[1735224252646,20.0,189.12,189.03,1.5166]
[1735224253470,30.0,189.11,189.03,1.5166]
[1735224253643,20.0,189.12,189.03,1.5166]
[1735224253644,20.0,189.1,189.03,1.5166]
[1735224256877,20.0,189.09,189.03,1.5166]
[1735224257061,50.0,189.1,189.03,1.5166]
[1735224257264,50.0,189.05,188.99,1.5166]
[1735224257580,50.0,189.05,188.96,6.0512]
[1735224257581,20.0,189.0,188.96,6.0512]
[1735224258082,30.0,188.99,188.96,6.0512]
[1735224258272,30.0,188.99,188.94,1.5166]
[1735224258877,30.0,188.97,188.94,1.5166]
[1735224259255,30.0,188.99,188.92,6.0512]
[1735224259557,25.2911,189.0,188.92,6.0512]
[1735224259558,30.0,188.97,188.92,6.0512]
[1735224260700,30.0,188.99,188.92,6.0512]
[1735224261197,50.0,188.99,188.92,6.0512]
[1735224261488,20.0,188.97,188.92,6.0512]
[1735224261710,20.0,188.97,188.86,8.02]
[1735224261711,30.0,188.92,188.86,8.02]
[1735224261978,30.0,188.94,188.86,8.02]
[1735224262185,30.0,188.91,188.86,8.02]
[1735224262356,30.0,188.91,188.81,8.02]
[1735224263477,20.0,188.9,188.81,8.02]
[1735224263686,20.0,188.9,188.81,32.32749698]
[1735224263896,20.0,188.9,188.83,24.30749698]
[1735224264394,20.0,188.94,188.84,24.30749698]
[1735224265597,20.0,188.94,188.84,23.776884]
[1735224266116,30.0,188.97,188.85,23.776884]
[1735224266417,14.02398907,188.99,188.86,23.776884]
[1735224266418,20.0,188.96,188.86,23.776884]
[1735224266711,20.0,188.96,188.87,8.02]
[1735224267292,50.0,188.96,188.87,8.02]
[1735224269764,20.0,188.96,188.87,8.02]
[1735224269975,20.0,188.95,188.87,8.02]
[1735224270180,33.12314011,189.02,188.88,23.776884]
[1735224270365,30.0,189.0,188.88,23.776884]
[1735224270672,0.12549,188.99,188.87,8.02]
[1735224270872,30.0,188.98,188.87,8.02]
[1735224271493,6.0354745,189.0,188.87,8.02]
[1735224271494,6.0354745,189.0,188.88,23.776884]
[1735224271680,30.0,188.99,188.88,23.776884]
[1735224272197,6.0354745,189.0,188.88,23.776884]
[1735224272394,30.0,188.97,188.87,8.02]
[1735224272576,20.0,188.94,188.87,8.02]
[1735224272894,30.0,188.93,188.87,8.02]
[1735224273272,35.2929,188.93,188.87,8.02]
[1735224273789,50.0,188.88,188.83,8.02]
[1735224273983,20.0,188.87,188.83,8.02]
[1735224274569,20.0,188.89,188.83,8.02]
[1735224275482,30.0,188.92,188.83,8.02]
[1735224275987,5.2921,188.96,188.84,23.776884]
[1735224276190,30.0,189.01,188.87,23.902374]
[1735224276967,30.0,188.97,188.83,32.28729896]
[1735224277176,30.0,188.97,188.84,23.902374]
[1735224277474,30.0,188.97,188.86,23.776884]
[1735224277774,30.0,188.97,188.84,48.16967296]
[1735224279227,30.0,188.97,188.86,23.776884]
[1735224283508,20.0,188.96,188.86,23.776884]
[1735224283812,30.0,188.97,188.86,23.776884]
[1735224285915,20.0,188.97,188.86,23.776884]
[1735224286514,20.0,188.97,188.85,7.7713]
[1735224286700,30.0,188.96,188.85,7.7713]
[1735224287314,20.0,188.95,188.85,7.7713]
[1735224287713,20.0,188.95,188.86,23.776884]
[1735224287909,20.0,188.97,188.86,23.776884]
[1735224291426,30.0,189.0,188.87,0.12549]
[1735224291716,30.0,189.0,188.89,23.776884]
[1735224291922,30.0,189.03,188.89,23.776884]
[1735224292423,30.0,189.01,188.89,23.776884]
[1735224293697,20.0,189.01,188.92,23.776884]
[1735224293899,35.45769672,189.07,188.95,23.902374]
[1735224294118,30.0,189.07,188.95,48.16967296]
[1735224294320,30.0,189.07,188.95,48.96321579]
[1735224295329,30.0,189.09,188.95,48.96321579]
[1735224295620,30.0,189.07,188.95,0.79354283]
[1735224295831,30.0,189.03,188.94,7.6756]
[1735224298006,5.2899,189.04,188.94,7.6756]
[1735224298210,20.0,189.02,188.94,7.6756]
[1735224298604,30.0,189.05,188.94,7.6756]
[1735224298806,20.0,189.04,188.95,23.776884]
[1735224300526,20.0,189.06,188.95,61.27508296]
[1735224300701,30.0,189.09,188.95,61.27508296]
[1735224301333,5.2882,189.1,188.95,61.27508296]
[1735224301532,30.0,189.11,189.0,23.776884]
[1735224301750,30.0,189.11,188.99,8.46899256]
[1735224301907,30.0,189.09,188.99,7.6756]
[1735224302837,20.0,189.08,188.99,7.6756]
[1735224303006,20.0,189.07,188.99,7.6756]
[1735224304328,20.0,189.05,188.99,7.6756]
[1735224304654,30.0,189.04,188.99,7.6756]
[1735224304948,30.0,189.02,188.99,7.6756]
[1735224305536,20.0,189.0,188.99,7.6756]
[1735224306239,20.0,189.03,188.99,7.6756]
[1735224307235,50.0,189.03,188.99,7.6756]
[1735224307839,50.0,189.03,188.91,7.6654]
[1735224308050,30.0,188.99,188.91,7.6654]
[1735224308603,30.0,188.97,188.91,7.6654]
[1735224309234,5.2904,189.02,188.91,7.6654]
[1735224309235,30.0,188.95,188.91,7.6654]
[1735224309618,30.0,188.93,188.91,7.6654]
[1735224309943,30.0,188.91,188.81,7.6654]
[1735224310119,0.12549,188.92,188.81,7.6654]
[1735224310326,50.0,188.9,188.81,7.6654]
[1735224310748,30.0,188.88,188.81,7.6654]
[1735224310945,30.0,188.86,188.81,7.6654]
[1735224311121,50.0,188.9,188.81,7.6654]
[1735224311453,30.0,188.86,188.81,7.6654]
[1735224311655,20.0,188.9,188.81,7.6654]
[1735224311656,30.0,188.88,188.81,7.6654]
[1735224312366,20.0,188.9,188.82,23.776884]
[1735224312837,20.0,188.91,188.82,23.776884]
[1735224313766,50.0,188.91,188.81,7.6654]
[1735224313940,30.0,188.89,188.81,7.6654]
[1735224315059,30.0,188.87,188.81,7.6654]
[1735224315436,30.0,188.85,188.81,7.6654]
[1735224315637,20.0,188.84,188.81,7.6654]
[1735224316848,20.0,188.84,188.81,1.6586]
[1735224317153,20.0,188.82,188.77,6.0068]
[1735224317468,30.0,188.81,188.77,6.0068]
[1735224317667,30.0,188.81,188.76,1.6586]
[1735224318170,30.0,188.79,188.76,1.6586]
[1735224318341,30.0,188.79,188.72,6.0068]
[1735224318846,20.0,188.82,188.72,6.0068]
[1735224319050,20.0,188.82,188.73,23.776884]
[1735224319248,35.2947,188.87,188.73,23.776884]
[1735224319249,30.0,188.87,188.75,23.776884]
[1735224319477,30.0,188.89,188.76,6.0068]
[1735224319671,35.2938,188.9,188.76,6.0068]
[1735224319868,35.2938,188.9,188.77,23.776884]
[1735224320073,30.0,188.92,188.79,23.776884]
[1735224320364,30.0,188.94,188.81,48.03203204]
[1735224320574,30.0,188.94,188.83,23.776884]
[1735224320783,30.0,188.92,188.82,1.6586]
[1735224321591,30.0,188.89,188.82,1.6586]
[1735224322297,20.0,188.86,188.82,1.6586]
[1735224322478,30.0,188.89,188.82,1.6586]
[1735224322479,20.0,188.88,188.82,1.6586]
[1735224323121,5.2929,188.93,188.82,1.6586]
[1735224323122,30.0,188.95,188.82,1.6586]
[1735224324083,30.0,188.95,188.82,25.91374804]
[1735224324382,20.0,188.92,188.82,25.91374804]
[1735224324590,20.0,188.92,188.82,1.6586]
[1735224327909,20.0,188.92,188.83,6.5368]
[1735224329014,5.292,188.97,188.83,6.5368]
[1735224329015,50.0,188.9,188.83,6.5368]
[1735224329219,20.0,188.85,188.83,6.5368]
[1735224330421,20.0,188.85,188.82,1.6586]
[1735224330422,20.0,188.83,188.82,1.6586]
[1735224330652,20.0,188.8,188.79,6.5368]
[1735224330936,50.0,188.8,188.74,6.5368]
[1735224331592,20.0,188.76,188.74,6.5368]
[1735224331791,30.0,188.78,188.74,6.5368]
[1735224331792,20.0,188.75,188.74,6.5368]
[1735224332286,20.0,188.74,188.73,1.5242]
[1735224332795,20.0,188.73,188.7,6.5368]
[1735224333121,20.0,188.71,188.7,6.5368]
[1735224333617,30.0,188.68,188.64,8.061]
[1735224333835,30.0,188.7,188.64,8.061]
[1735224334937,20.0,188.65,188.59,6.5368]
[1735224336425,20.0,188.63,188.59,6.5368]
[1735224337345,30.0,188.68,188.59,6.5368]
[1735224337550,20.0,188.65,188.59,6.5368]
[1735224339552,20.0,188.67,188.59,6.5368]
[1735224339751,20.0,188.65,188.59,6.5368]
[1735224341974,30.0,188.75,188.6,23.902374]
[1735224342174,30.0,188.75,188.62,23.902374]
[1735224342358,35.2974,188.78,188.65,24.25514804]
[1735224342564,30.0,188.78,188.65,24.25514804]
[1735224343276,30.0,188.8,188.66,24.25514804]
[1735224343577,23.902374,188.79,188.65,24.25514804]
[1735224344055,30.0,188.78,188.65,24.25514804]
[1735224344879,20.0,188.75,188.65,24.25514804]
[1735224346180,20.0,188.75,188.64,24.25514804]
[1735224347182,20.0,188.75,188.65,24.25514804]
[1735224347561,20.0,188.77,188.67,30.58634804]
[1735224347877,20.0,188.8,188.7,24.25514804]
[1735224348064,20.0,188.78,188.68,24.38063804]
[1735224348267,20.0,188.78,188.69,24.25514804]
[1735224348468,23.776884,188.82,188.69,24.25514804]
[1735224348666,30.0,188.83,188.69,24.25514804]
[1735224348866,30.0,188.85,188.71,24.25514804]
[1735224349081,30.0,188.85,188.72,7.8559]
[1735224349279,23.776884,188.84,188.72,7.8559]
[1735224349675,30.0,188.85,188.72,32.11104804]
[1735224349885,30.0,188.87,188.73,24.25514804]
[1735224350503,23.776884,188.86,188.73,24.25514804]
[1735224351084,30.0,188.87,188.72,32.11104804]
[1735224351294,20.0,188.82,188.72,7.8559]
[1735224351474,20.0,188.82,188.72,32.11104804]
[1735224351667,20.0,188.82,188.73,48.15752204]
[1735224351862,20.0,188.84,188.74,7.898]
[1735224353288,20.0,188.84,188.74,32.15314804]
[1735224353585,20.0,188.84,188.74,7.898]
[1735224354088,35.2947,188.87,188.74,7.898]
[1735224355214,20.0,188.84,188.74,7.898]
[1735224356097,20.0,188.83,188.74,7.898]
[1735224356393,20.0,188.81,188.74,7.898]
[1735224356891,20.0,188.76,188.74,7.898]
[1735224357676,20.0,188.78,188.74,7.898]
[1735224357876,20.0,188.81,188.74,7.898]
[1735224358200,35.2946,188.87,188.74,7.898]
[1735224359986,20.0,188.84,188.74,7.898]
[1735224360187,20.0,188.86,188.75,15.18659136]
[1735224360382,20.0,188.84,188.74,7.898]
[1735224360802,30.0,188.89,188.76,15.18659136]
[1735224360998,30.0,188.91,188.79,15.18659136]
[1735224361385,30.0,188.91,188.78,23.08459136]
[1735224361900,23.902374,188.88,188.78,7.898]
[1735224362102,30.0,188.86,188.78,7.898]
[1735224362305,30.0,188.84,188.78,7.898]
[1735224362511,30.0,188.82,188.78,7.898]
[1735224362811,20.0,188.78,188.74,1.5691]
[1735224362988,20.0,188.77,188.74,1.5691]
[1735224363389,50.0,188.77,188.73,6.3289]
[1735224364219,20.0,188.72,188.7,1.5691]
[1735224364593,20.0,188.72,188.68,6.3289]
[1735224364802,20.0,188.7,188.68,6.3289]
[1735224365098,30.0,188.79,188.68,6.3289]
[1735224365325,20.0,188.76,188.68,6.3289]
[1735224365523,20.0,188.74,188.68,6.3289]
[1735224365931,30.0,188.82,188.68,6.3289]
[1735224366225,35.2956,188.84,188.7,1.5436]
[1735224366522,35.2956,188.84,188.71,23.902374]
[1735224366706,30.0,188.86,188.73,24.31234989]
[1735224366907,30.0,188.86,188.74,6.4673]
[1735224367923,30.0,188.84,188.74,6.4673]
[1735224368709,20.0,188.81,188.74,6.4673]
[1735224370205,20.0,188.82,188.74,6.4673]
[1735224370423,35.2943,188.88,188.75,1.5436]
[1735224370626,30.0,188.86,188.75,1.5436]
[1735224370928,30.0,188.84,188.75,1.5436]
[1735224371115,30.0,188.83,188.75,1.5436]
[1735224371514,20.0,188.82,188.75,1.5436]
[1735224372415,20.0,188.83,188.75,1.5436]
[1735224372943,20.0,188.82,188.75,1.5436]
[1735224373140,50.0,188.81,188.75,1.5436]
[1735224373313,20.0,188.76,188.75,1.5436]
[1735224373640,20.0,188.74,188.7,1.5436]
[1735224373851,20.0,188.69,188.65,1.5436]
[1735224374128,20.0,188.67,188.65,1.5436]
[1735224375625,20.0,188.68,188.65,1.5436]
[1735224375822,20.0,188.66,188.65,1.5436]
[1735224376131,20.0,188.66,188.64,6.4673]
[1735224376520,20.0,188.68,188.64,6.4673]
[1735224376915,20.0,188.66,188.6,1.5436]
[1735224377330,30.0,188.65,188.6,1.5436]
[1735224377548,20.0,188.62,188.59,6.4673]
[1735224377711,20.0,188.6,188.59,6.4673]
[1735224379237,20.0,188.65,188.59,6.4673]
[1735224379844,35.2996,188.7,188.59,6.4673]
[1735224380149,23.776884,188.69,188.59,6.4673]
[1735224380353,30.0,188.68,188.59,6.4673]
[1735224380534,23.776884,188.69,188.59,6.4673]
[1735224381246,20.0,188.63,188.59,6.4673]
[1735224381851,20.0,188.64,188.59,6.4673]
[1735224382147,20.0,188.63,188.59,6.4673]
[1735224382745,50.0,188.63,188.59,6.4673]
[1735224382934,30.0,188.61,188.55,8.017]
[1735224383126,20.0,188.58,188.55,8.017]
[1735224383328,50.0,188.58,188.47,8.1367]
[1735224383750,30.0,188.56,188.47,8.1367]
[1735224383950,50.0,188.58,188.47,8.1367]
[1735224384145,20.0,188.57,188.47,8.1367]
[1735224385240,20.0,188.55,188.47,8.1367]
[1735224385942,20.0,188.57,188.47,8.1367]
[1735224386157,50.0,188.57,188.47,8.1367]
[1735224386459,30.0,188.55,188.47,8.1367]